Cogmind - Beta 14 @@@ ROGUE MODE // 2025.01.18 @ 19:27:54 Player: Egor Result: Self-destructed Performance ------------- Evolutions (1) 500 Regions Visited (2) 400 Robots Destroyed (25) 125 Value Destroyed (468) 468 Prototype IDs (2) 40 Alien Tech Used (0) 0 Bonus (0) 0 TOTAL SCORE: 1533 Bonus ------- None Cogmind --------- Core Integrity 227/400 Matter 229/300 Energy 100/100 System Corruption 0% Temperature Hot (235) Movement Flying (40) Location -9/Materials Parts ------- > --- POWER (1) -------- (None) > --- PROPULSION (4) --- Flight Unit > --- UTILITY (2) ------ Visual Processing Unit > --- WEAPON (2) ------- (None) > --- INVENTORY (5) ---- Signal Interpreter Improved EM Shotgun Particle Gun Beam Cannon Assault Rifle Peak State ------------ > --- POWER ------------ Improved Ion Engine > --- PROPULSION ------- Flight Unit Flight Unit Flight Unit Flight Unit > --- UTILITY ---------- Visual Processing Unit Sensor Array > --- WEAPON ----------- Beam Rifle Autogun > --- INVENTORY -------- Signal Interpreter Improved EM Shotgun Particle Gun Beam Cannon Assault Rifle [Rating: 13] Favorites ----------- Power Ion Engine Engine Ion Engine Propulsion Flight Unit Wheel Wheel Hover Unit Hover Unit Flight Unit Flight Unit Utility Visual Processing Unit Device Sensor Array Storage Medium Storage Unit Processor Visual Processing Unit Weapon Assault Rifle Energy Gun Beam Rifle Ballistic Gun Assault Rifle Build | -11 -10 -9 ------- Run | Yrd Mat Mat Slots Evolved 2 | . . 2 Power . | . . . Propulsion 2 | . . 2 Utility . | . . . Weapon . | . . . Parts Attached 25 | 6 14 5 Power 4 | 1 2 1 Engine 4 | 1 2 1 Core . | . . . Reactor . | . . . Propulsion 12 | 2 8 2 Treads . | . . . Leg . | . . . Wheel 3 | 2 1 . Hover 1 | . 1 . Flight 8 | . 6 2 Utility 4 | 1 3 . Device 1 | . 1 . Storage 2 | 1 1 . Processor 1 | . 1 . Hackware . | . . . Protection . | . . . Artifact . | . . . Weapon 5 | 2 1 2 Energy Gun 1 | . . 1 Energy Cannon . | . . . Ballistic Gun 4 | 2 1 1 Ballistic Cannon . | . . . Launcher . | . . . Special Weapon . | . . . Impact Weapon . | . . . Slashing Weapon . | . . . Piercing Weapon . | . . . Special Melee Weapon . | . . . Unidentified Prototypes . | . . . Parts Lost 12 | . 4 8 Power 2 | . . 2 Propulsion 6 | . 3 3 Utility 1 | . . 1 Weapon 3 | . 1 2 Highest Loss Streak 7 | . 2 7 To Critical Strikes . | . . . Average Slot Usage (%) 91 | . 90 94 Engine 13 | . 14 9 Wheel 7 | . 10 . Hover 3 | . 3 . Flight 17 | . 10 40 Device 4 | . 2 11 Storage 6 | . 8 . Processor 11 | . 11 11 Energy Gun 1 | . . 5 Ballistic Gun 25 | . 27 16 Peak Build Rating 13 | 6 9 13 Average Rating 7 | 4 7 10 On Entrance 4 | . 6 8 Naked Turns . | . . . Heaviest Build 19 | 12 19 14 Greatest Support 20 | 20 20 16 Greatest Overweight (x) 6 | . 6 . Average Overweight (x) . | . . . Largest Inventory Capacity 10 | 8 10 5 Average Capacity 7 | 7 7 5 Most Carried 10 | 2 10 5 Average Carried 4 | . 4 3 Final Capacity 8 | 8 5 5 Final Carried 5 | 2 5 5 Class Distribution -------------------- 66% | Mutant 19% | Scavenger-Sprinter 14% | Scavenger-Mutant Dominant Class ---------------- Mutant | -10/Materials Scavenger-Sprinter | -9/Materials Resources | -11 -10 -9 ----------- Run | Yrd Mat Mat Matter Collected 713 | 59 501 153 Remotely . | . . . Salvage Created 601 | . 341 260 Parts 58 | . 35 23 Haulers Intercepted 1 | . . 1 Recyclers Shooed . | . . . Parts Field Recycled . | . . . Retrieved Matter . | . . . Parts Self-Destructed . | . . . Prevented . | . . . Kills | -11 -10 -9 ------- Run | Yrd Mat Mat Combat Hostiles Destroyed 19 | . 11 8 Guns 19 | . 11 8 Classes Destroyed 6 | . 3 3 Tunneler 1 | . . 1 Hauler 1 | . . 1 Watcher 4 | . 3 1 Swarmer 12 | . 6 6 Grunt 6 | . 5 1 Sentry 1 | . . 1 Best Kill Streak 5 | . 3 5 Combat Bots Only 4 | . 3 4 Max Kills in Single Turn 1 | . 1 1 Gunslinging . | . . . Exploded . | . . . Melee . | . . . Uniques/NPCs Destroyed . | . . . Combat | -11 -10 -9 -------- Run | Yrd Mat Mat Hostile Shots Fired 134 | . 64 70 Missed 48 | . 22 26 Damage Taken 969 | . 448 521 Core 250 | . 77 173 Absorbed by Shields . | . . . Core Remaining (%) 84 | 100 69 . Volleys Fired 80 | . 43 37 Largest 2 | . 2 2 Hottest 79 | . 40 79 Shots Fired 149 | . 84 65 Gun 149 | . 84 65 Cannon . | . . . Launcher . | . . . Special . | . . . Kinetic 134 | . 84 50 Thermal 15 | . . 15 Explosive . | . . . Electromagnetic . | . . . Robot Hit Streak 7 | . 7 7 Robot Miss Streak 7 | . 7 6 Penetration Max . | . . . Secondary Targets 5 | . 1 4 Max Gunslinging Chain 1 | . 1 1 Shots Hit Robots 78 | . 43 35 Core Hits 36 | . 23 13 Critical Kills . | . . . Critical Parts Destroyed . | . . . Critical Strikes . | . . . Melee Attacks . | . . . Impact . | . . . Slashing . | . . . Piercing . | . . . Sneak Attacks . | . . . Combat Hostiles . | . . . Follow-up Attacks . | . . . Damage Inflicted 1060 | . 586 474 Guns 1056 | . 582 474 Cannons . | . . . Explosions . | . . . Melee . | . . . Ramming 4 | . 4 . Kinetic 956 | . 582 374 Thermal 100 | . . 100 Explosive . | . . . Electromagnetic . | . . . Impact . | . . . Slashing . | . . . Piercing . | . . . Highest Corruption . | . . . Average Corruption . | . . . Corruption Purged . | . . . Corruption Blocked . | . . . Overload Shots . | . . . Overflow Damage . | . . . Projectiles . | . . . Explosions . | . . . Melee . | . . . Knockbacks . | . . . Impact . | . . . Kinetic . | . . . Secondary . | . . . Self-Inflicted Damage 1 | . 1 . Shots . | . . . Rammed 2 | . 2 . Targets Rammed 2 | . 2 . Kicked . | . . . Crushed . | . . . Highest Temperature 434 | . 6 434 Average Temperature 173 | . 2 194 Received Heat Transfer 282 | . 147 135 Effects 3 | . . 3 Damage (minor) 3 | . . 3 Siege Activations . | . . . Robots Corrupted . | . . . Combat Hostiles . | . . . Parts Fried . | . . . Impact Corruptions . | . . . Robots Melted . | . . . Combat Hostiles . | . . . Parts Melted 1 | . . 1 Heat Transferred 259 | . . 259 Parts Sabotaged . | . . . Parts Stolen . | . . . Parts Stripped . | . . . Power Chain Reactions . | . . . Alert | -11 -10 -9 ------- Run | Yrd Mat Mat Peak Influence 264 | . 264 242 Initial 48 | . . 48 Average 109 | . 110 124 Maximum Alert Level 1 | . 1 1 Low Security (%) 86 | 100 89 77 Level 1 13 | . 10 22 Level 2 . | . . . Level 3 . | . . . Level 4 . | . . . Level 5 . | . . . High Security . | . . . Max Security . | . . . Squads Dispatched . | . . . Investigation . | . . . Extermination . | . . . Reinforcement . | . . . Assault . | . . . Garrison . | . . . Intercept . | . . . Searches Triggered . | . . . Construction Impeded . | . . . Haulers Reinforced . | . . . Active Scanning Responses . | . . . Cargo Convoy Interrupts . | . . . Stealth | -11 -10 -9 --------- Run | Yrd Mat Mat Distress Signals 2 | . 1 1 Communications Jammed . | . . . Distress Signals . | . . . Times Spotted 29 | . 18 11 Peak Tracking Total 5 | . 5 5 Tactical Retreats 1 | . . 1 Traps | -11 -10 -9 ------- Run | Yrd Mat Mat Traps Triggered . | . . . Indirectly . | . . . Trap Hack Attempts . | . . . Triggered . | . . . Disarmed . | . . . Reprogrammed . | . . . Reused . | . . . Traps Extracted . | . . . Installed . | . . . Triggered . | . . . Machines | -11 -10 -9 ---------- Run | Yrd Mat Mat Machines Disabled . | . . . Max in Single Turn . | . . . Machines Repaired . | . . . Machines Dismantled . | . . . Machines Sabotaged . | . . . Overloaded Fab Kills . | . . . Hacking | -11 -10 -9 --------- Run | Yrd Mat Mat Machines Accessed 8 | . 7 1 Terminals 8 | . 7 1 Fabricators . | . . . Repair Stations . | . . . Recycling Units . | . . . Scanalyzers . | . . . Garrison Access . | . . . Total Hacks 27 | . 24 3 Successful 12 | . 10 2 Failed 15 | . 14 1 Catastrophic 3 | . 3 . Database Lockouts . | . . . Manual . | . . . Terminals 27 | . 24 3 Fabricators . | . . . Repair Stations . | . . . Recycling Units . | . . . Scanalyzers . | . . . Garrison Access . | . . . Terminal Hacks 12 | . 10 2 Record 1 | . . 1 Prototype ID Bank 1 | . 1 . Branch Access Points 1 | . 1 . Locate Traps 3 | . 3 . Maintenance Status 1 | . 1 . Patrol Status 1 | . 1 . Reinforcement Status 1 | . 1 . Zone Layout 3 | . 2 1 Fabricator Hacks . | . . . Repair Station Hacks . | . . . Recycling Unit Hacks . | . . . Scanalyzer . | . . . Garrison Access Hacks . | . . . Unauthorized Hacks . | . . . Terminals . | . . . Fabricators . | . . . Repair Stations . | . . . Recycling Units . | . . . Scanalyzers . | . . . Garrison Access . | . . . Data Cores Recovered . | . . . Used . | . . . Hacking Detections 7 | . 6 1 Full Trace Events 4 | . 4 . Feedback Events . | . . . Feedback Blocked . | . . . Robot Schematics Acquired . | . . . Robots Built . | . . . Authchips . | . . . Time . | . . . Total Robot Build Rating . | . . . Part Schematics Acquired . | . . . Parts Built . | . . . Authchips . | . . . Time . | . . . Total Part Build Rating . | . . . Parts Repaired . | . . . Time . | . . . Parts Recycled . | . . . Recycled Matter . | . . . Retrieved Matter . | . . . Retrieved Components . | . . . Parts Scanalyzed . | . . . Part Schematics Acquired . | . . . Parts Damaged . | . . . Bothacking | -11 -10 -9 ------------ Run | Yrd Mat Mat Used RIF Installer . | . . . Robots Hacked . | . . . Non-combat . | . . . Combat . | . . . Robot Hacks Applied . | . . . Relay Couplers Released . | . . . Fabnet Peak Effective % . | . . . Robots Rewired . | . . . Allies Hacked . | . . . Hacks Repelled . | . . . Allies | -11 -10 -9 -------- Run | Yrd Mat Mat Total Allies . | . . . Largest Group . | . . . Highest-Rated Group . | . . . Highest-Rated Ally . | . . . Total Orders . | . . . Ally Attacks . | . . . Total Damage . | . . . Kills . | . . . Allies Corrupted . | . . . Allies Melted . | . . . Intel | -11 -10 -9 ------- Run | Yrd Mat Mat Robot Analysis Total . | . . . Derelict Logs Recovered . | . . . Drone Launches . | . . . Drone Recoveries . | . . . Exploration | -11 -10 -9 ------------- Run | Yrd Mat Mat Turns Passed 1097 | 38 819 240 Spaces Moved 1339 | 35 1046 258 Core 2 | 1 1 . Treads . | . . . Legs . | . . . Wheels 447 | 34 413 . Hover . | . . . Flight 890 | . 632 258 Fastest Speed 31 | 50 37 31 Average Speed 55 | 79 61 31 Slowest Speed 360 | 80 360 31 Overloaded Moves . | . . . Propulsion Burnouts . | . . . Robots Hopped 5 | . 5 . Cave-ins Triggered . | . . . Exploration Rate (%) 35 | 3 85 17 Regions Visited 2 Branch Regions . Pre-discovered Areas . | . . . Known Exits Taken . | . . . Unknown Exits Taken 2 | 1 1 . Scrap Searched . | . . . Spaces Dug . | . . . Terrain Destroyed . | . . . Melee . | . . . Projectile . | . . . AOE . | . . . Terrain Rammed . | . . . Walls Destroyed . | . . . Machines Disabled . | . . . Actions | -11 -10 -9 --------- Run | Yrd Mat Mat Total 1535 | 42 1134 359 Wait 66 | . 10 56 Move 1327 | 34 1035 258 Hop 5 | . 5 . Pick Up 15 | 2 12 1 Fast Attach 17 | 6 9 2 Attach 6 | . 4 2 Detach 4 | . 3 1 Swap 2 | . 1 1 Drop 11 | . 10 1 Fire 80 | . 43 37 Melee . | . . . Ram 2 | . 2 . Kick . | . . . Crush . | . . . Escape Stasis . | . . . Rewire . | . . . Trap . | . . . Miscellaneous . | . . . Route ------- -11/Scrapyard -10/Materials (discovered 4 exits: *Mat x2 / *Min / [*Sub]) -9/Materials (discovered 1 exit: [*Min]) History --------- Turn | Location | Event 14 | -11/Scrapyard | Discovered new exit (range 15) 39 | -11/Scrapyard | Entered Materials 207 | -10/Materials | Discovered new exit (range 14) 305 | -10/Materials | Build established: Mutant 377 | -10/Materials | Discovered new exit (range 16) 512 | -10/Materials | Discovered new exit (range 18) 789 | -10/Materials | Identified exit to Mines 818 | -10/Materials | Discovered new exit (range 11) 858 | -10/Materials | Entered another Materials area 858 | -9/Materials | Evolved 2 slots: Propulsion x2 862 | -9/Materials | Discovered new exit (range 17) 1098 | -9/Materials | Self-destructed Last Messages --------------- Defender. 01068_ Flight Unit destroyed. 01068_ T-07 Excavator destroyed. 01068_ R-06 Scavenger collects Lgt. Ion Engine. 01073_ G-34 Mercenary destroyed. 01076_ R-06 Scavenger collects Lgt. Ion Engine. 01077_ Overheating: Imp. Ion Engine damaged (-22). 01077_ Imp. Ion Engine destroyed. 01078_ Overheating: Flight Unit damaged (-4). 01079_ Overheating: Beam Rifle damaged (-11). 01079_ R-06 Scavenger collects Flight Unit. 01080_ Beam Rifle destroyed. 01084_ R-06 Scavenger collects Lgt. Ion Engine. 01089_ Flight Unit destroyed. 01090_ K-01 Serf collects debris. 01096_ A-02 Transporter destroyed. 01097_ K-01 Serf collects debris. 01097_ Sensor Array destroyed. 01097_ Autogun destroyed. Map ----- +----------------------------------------------------+ | # """ #???????????????????????????????????? | | # #???????????????????????????????????? | | ## #???????????????????????????????????? | | ################???????????????????????????????? | | =*# ## |[[#???????????????????????????????? | | [ + ## |[ #???????????????????????????????? | | [# "T" ## |[ #???????????????????????????????? | | =%#####+#### #???????????????????????????????? | | %#???# #??# #???????????????????????????????? | | #???# #??# #???????????????????????????????? | | #???# #??# """ #???????????????????????????????? | | #???# #??# """ #???????????????????????????????? | | ##### ##?# """ ##########??????????????????????? | | #?# # #??????????????????????? | | #####+### """ #??????????????????????? | | # """ #??????????????????????? | | ###### # """ #??????????????????????? | | # + #??????????????????????? | | # #"S #??????????????????????? | | + #""" ! #??????????????????????? | | # ## "" #??????????????????????? | | # ## #??????????????????????? | | ?????# """ ###########??????????????????????? | | ?????# """"" ###########???????? #???????? | | ?????# """"" # ### k ??????? | | ?????# """"" # =%@/ % ??????? | | ??#### """ # !%% ### % ??????? | | #= *%!#???????? #???????? | | %+[k[ Y != #??????????????????????? | | *# Y #??????????????????????? | | #######+######### #??????????????????????? | | ????????????????# g #??????????????????????? | | ????????????????#/#########??????????????????????? | | ??????????????? ???????????????????????????????? | | ??????????????# ????????????????????????????????? | | ??????????????# ?????????????????????????????????? | | ??????????????#??????????????????????????????????? | | ?????????????????????????????????????????????????? | | ?????????????????????????????????????????????????? | | ?????????????????????????????????????????????????? | | ?????????????????????????????????????????????????? | | ?????????????????????????????????????????????????? | | ?????????????????????????????????????????????????? | | ?????????????????????????????????????????????????? | | ?????????????????????????????????????????????????? | | ?????????????????????????????????????????????????? | | ?????????????????????????????????????????????????? | | ?????????????????????????????????????????????????? | | ?????????????????????????????????????????????????? | | ?????????????????????????????????????????????????? | +----------------------------------------------------+ Best States ------------- Heat Dissipation 28 Energy Generation 12 Energy Capacity 265 Matter Stores 300 Matter Capacity 300 Sight Range 18 Robot Scan Range 14 Terrain Scan Density 10 Evasion (%) 63 Item Schematics ----------------- None Robot Schematics ------------------ None Fabricated ------------ Nothing Alien Tech Used ----------------- None Achievements -------------- None Challenges ------------ None Game ------ Seed NavigationBladeBay Manual? 0 Play Time 00:27:14 Cumulative 8.9 hours Start 2025.01.18 @ 17:16:24 End 2025.01.18 @ 19:27:54 Sessions 5 Manual Loads 0 Difficulty Rogue Special Mode None Game No. 15 Rogue 15 Adventurer 0 Explorer 0 Win Type - Total 0 Types 0/0/0/0/0/0/0/0/0 Lore% 1 Gallery% 9 Achievement% 10 Wizard Run 0 Options --------- Layout 1 ASCII 0 Keyboard 1 Movement Vi Keybinds 0 Fullscreen 2 Font 24/Smallcaps Map View 25x17 Zoom Use 65% Tactical HUD 1 Map Filters NONE Filters NONE Steam 1 RUN: f0a95f05-9927-4736-a7e4-4e245fe7dfd6